fUSD/lending_fUSD_20250106
["ID","MTS","AMOUNT","RATE_DAILY","PERIOD"]
[347879982,1736178653063,-500.257082,0.00012298,2]
[347879983,1736178653073,-502.51519698,0.00012298,2]
[347879984,1736178653083,-500.37172481,0.00012298,2]
[347879985,1736178653092,-500.72644301,0.00012298,2]
[347879986,1736178653102,-501.07533022,0.00012298,2]
[347879987,1736178653111,-500.30620408,0.00012298,2]
[347879988,1736178653121,-501.59316523,0.00012298,2]
[347879989,1736178653131,-500.14936281,0.00012298,2]
[347879990,1736178653140,-501.01508982,0.00012298,2]
[347879991,1736178653149,-500.36510096,0.00012298,2]
[347879992,1736178653159,-501.44627831,0.00012298,2]
[347879993,1736178653169,-500.85118675,0.00012298,2]
[347879994,1736178653178,-500.5644761,0.00012298,2]
[347879995,1736178653188,-500.29979608,0.00012298,2]
[347879996,1736178653198,-501.27553358,0.00012298,2]
[347879997,1736178653207,-501.01775014,0.00012298,2]
[347879998,1736178653217,-500.0,0.00012298,2]
[347879999,1736178653227,-501.43018725,0.00012298,2]
[347880000,1736178653237,-501.14802374,0.00012298,2]
[347880001,1736178653247,-501.23911497,0.00012298,2]
[347880002,1736178653257,-501.9637127,0.00012298,2]
[347880003,1736178653266,-500.0,0.00012298,2]
[347880004,1736178653276,-500.52804526,0.00012298,2]
[347880005,1736178653286,-500.34828826,0.00012298,2]
[347880006,1736178653299,-501.58090245,0.00012298,2]
[347880007,1736178653308,-502.50652851,0.00012298,2]
[347880008,1736178653319,-500.46047113,0.00012298,2]
[347880009,1736178653329,-301.07909621,0.00012298,2]
[347880010,1736178653339,-501.05522114,0.00012298,2]
[347880011,1736178653348,-500.0,0.00012298,2]
[347880012,1736178653358,-501.3566895,0.00012298,2]
[347880013,1736178653368,-500.0,0.00012298,2]
[347880014,1736178653377,-501.37703828,0.00012298,2]
[347880015,1736178653387,-501.87592485,0.00012298,2]
[347880016,1736178653398,-501.75134445,0.00012298,2]
[347880017,1736178653408,-502.41280236,0.00012298,2]
[347880018,1736178653418,-500.19162035,0.00012298,2]
[347880019,1736178653429,-500.0,0.00012298,2]
[347880020,1736178653439,-615.9562974,0.00012298,2]
[347880021,1736178653449,-501.44665161,0.00012298,2]
[347880022,1736178653459,-500.18905261,0.00012298,2]
[347880023,1736178653468,-500.63332312,0.00012298,2]
[347880024,1736178653479,-500.42309002,0.00012298,2]
[347880025,1736178653490,-500.98351725,0.00012298,2]
[347880026,1736178653499,-521.65396962,0.00012298,2]
[347880027,1736178653510,-500.7658084,0.00012298,2]
[347880028,1736178653520,-179.59984139,0.00012298,2]
[347880029,1736178653529,-501.36197372,0.00012298,2]
[347880030,1736178653541,-501.46041328,0.00012298,2]
[347880031,1736178653551,-501.4143904,0.00012298,2]
[347880032,1736178653561,-501.06796644,0.00012298,2]
[347880033,1736178653570,-500.11776366,0.00012298,2]
[347880034,1736178653580,-500.16872142,0.00012298,2]
[347880035,1736178653589,-518.16501288,0.00012298,2]
[347880036,1736178653599,-500.39155412,0.00012298,2]
[347880037,1736178653608,-500.23640063,0.00012298,2]
[347880038,1736178653620,-500.22321548,0.00012298,2]
[347880039,1736178653629,-500.51915607,0.00012298,2]
[347880040,1736178653639,-500.0,0.00012298,2]
[347880041,1736178653650,-252.5779488,0.00012298,2]
[347880042,1736178653661,-1000.0,0.00012298,2]
[347880043,1736178653674,-500.42748816,0.00012298,2]
[347880044,1736178653684,-500.34222467,0.00012298,2]
[347880045,1736178653694,-501.26729216,0.00012298,2]
[347880046,1736178653704,-409.46927279,0.00012298,2]
[347880047,1736178653714,-633.69,0.00012298,2]
[347880048,1736178653723,-633.69,0.00012298,2]
[347880049,1736178653733,-500.0,0.00012298,2]
[347880050,1736178653743,-500.0,0.00012298,2]
[347880051,1736178653753,-500.0,0.00012298,2]
[347880052,1736178653764,-804.19,0.00012298,2]
[347880053,1736178653775,-500.0,0.00012298,2]
[347880054,1736178653786,-1213.15,0.00012298,2]
[347880055,1736178653798,-531.13,0.00012298,2]
[347880056,1736178653807,-721.05,0.00012298,2]
[347880057,1736178653819,-529.61,0.00012298,2]
[347880058,1736178653829,-500.0,0.00012298,2]
[347880059,1736178653840,-500.0,0.00012298,2]
[347880060,1736178653851,-631.16,0.00012298,2]
[347880061,1736178653862,-1183.68,0.00012298,2]
[347880062,1736178653872,-500.0,0.00012298,2]
[347880063,1736178653883,-48104.13811597,0.00012299,2]
[347880064,1736178653893,-2000.0,0.00012299,2]
[347880065,1736178653902,-2000.0,0.00012299,2]
[347880066,1736178653913,-2000.0,0.00012299,2]
[347880067,1736178653922,-2000.0,0.00012299,2]
[347880068,1736178653932,-2000.0,0.00012299,2]
[347880069,1736178653942,-2000.0,0.00012299,2]
[347880070,1736178653951,-2000.0,0.00012299,2]
[347880071,1736178653961,-29681.8195129,0.00012299,9]
[347880072,1736178653971,-150.0,0.00012299,2]
[347880073,1736178653982,-1000.0,0.00012299,2]
[347880074,1736178653992,-500.0,0.00012299,2]
[347880075,1736178654002,-500.0,0.00012299,2]
[347880076,1736178654012,-500.0,0.00012299,2]
[347880077,1736178654022,-500.0,0.00012299,2]
[347880078,1736178654032,-500.0,0.00012299,2]
[347880079,1736178654043,-500.0,0.00012299,2]
[347880080,1736178654054,-501.43448271,0.00012299,2]
[347880081,1736178654064,-1876.66,0.00012299,2]
[347880082,1736178654075,-1315312.04985132,0.000123,4]
[347880083,1736178654084,-1257897.03386194,0.000123,2]
[347880084,1736178654094,-2196366.62323245,0.000123,2]
[347880085,1736178654347,-2793.02318066,0.000123,2]
[347880086,1736178654359,-417.76166719,0.000123,2]
[347880087,1736178654371,-548.00952576,0.000123,2]
[347880088,1736178654383,-301.92197159,0.000123,2]
[347880089,1736178654416,-63.22484056,0.000123,2]
[347880090,1736178654459,-1018.8,0.000123,2]
[347880091,1736178654471,-6502.5588071,0.000123,2]
[347880092,1736178654483,-15420.54971,0.000123,2]
[347880093,1736178654494,-5729.912246,0.000123,2]
[347880094,1736178654506,-2448.0,0.000123,2]
[347880095,1736178654518,-2370.58391407,0.000123,2]
[347880096,1736178654530,-469.66108149,0.000123,2]
[347880097,1736178654545,-509.71667059,0.000123,2]
[347880098,1736178654557,-384.644286,0.000123,2]
[347880099,1736178654803,-500.0,9.899e-05,2]
[347880100,1736178654812,-3673.47560101,0.000123,2]
[347880101,1736178654824,-27632.97700115,0.000123,2]
[347880102,1736178654836,-1027.43750262,0.000123,2]
[347880103,1736178654847,-1363.68834929,0.000123,2]
[347880104,1736178654859,-479.31853133,0.000123,2]
[347880105,1736178654871,-393.57795466,0.000123,2]
[347880106,1736178654883,-2646.33936361,0.000123,2]
[347880107,1736178654895,-480.005,0.000123,2]
[347880108,1736178655431,-1053.84314932,0.000123,2]
[347880109,1736178655443,-329694.15757379,0.000123,2]
[347880110,1736178655454,-115207.56950521,0.000123,2]
[347880111,1736178655465,-283.62,0.000123,2]
[347880112,1736178655478,-277.209,0.000123,2]
[347880113,1736178655490,-340.39927,0.000123,2]
[347880114,1736178655502,-1772.84939215,0.000123,2]
[347880115,1736178655513,-234288.85833561,0.000123,2]
[347880116,1736178655629,-500.0,9.899e-05,2]
[347880117,1736178655641,-500.0,9.997e-05,2]
[347880118,1736178655650,-92.13677785,0.00010173,2]
[347880119,1736178655662,-407.86322215,0.00010173,2]
[347880120,1736178655672,-500.0,0.00010447,2]
[347880121,1736178655682,-267.93,0.00010721,2]
[347880122,1736178655692,-3504.03384253,0.000123,2]
[347880123,1736178655707,-2033.70692799,0.000123,2]
[347880124,1736178655719,-513.8951135,0.000123,2]
[347880125,1736178655731,-4422.2573921,0.000123,2]
[347880126,1736178655743,-563.91035196,0.000123,2]
[347880127,1736178655754,-484.76569275,0.000123,2]
[347880128,1736178655765,-40347.95024,0.000123,2]
[347880129,1736178655781,-9653.80000013,0.000123,2]
[347880130,1736178655793,-3065.14969328,0.000123,2]
[347880131,1736178655804,-22322.03929,0.000123,2]
[347880132,1736178655816,-833.87987711,0.000123,2]
[347880133,1736178655828,-726.15386729,0.000123,2]
[347880134,1736178655839,-13787.9999999,0.000123,2]
[347880135,1736178655856,-730.07140233,0.000123,2]
[347880136,1736178655869,-652.62529538,0.000123,2]
[347880137,1736178655881,-4717.6,0.000123,2]
[347880138,1736178655892,-14159.49802454,0.000123,2]
[347880139,1736178655903,-3932.74721704,0.000123,2]
[347880140,1736178655915,-1164.90682513,0.000123,2]
[347880141,1736178655926,-1341.47799,0.000123,2]
[347880142,1736178655937,-434.67999985,0.000123,2]
[347880143,1736178655950,-4260.09096714,0.000123,2]
[347880144,1736178655962,-332.7208416,0.000123,2]
[347880145,1736178655974,-4245.22314852,0.000123,2]
[347880146,1736178655985,-717.41701461,0.000123,2]
[347880147,1736178655996,-616.40024748,0.000123,2]
[347880148,1736178656007,-2417.74338737,0.000123,2]
[347880149,1736178656019,-13636.89355177,0.000123,2]
[347880150,1736178656312,-500.0,9.899e-05,2]
[347880151,1736178656322,-500.0,9.899e-05,2]
[347880152,1736178656332,-149.86420185,0.00010173,2]
[347880153,1736178656344,-203.01579815,0.00010173,2]
[347880154,1736178656354,-266.98420185,0.000123,2]
[347880155,1736178656365,-90943.37067011,0.000123,2]
[347880156,1736178656377,-3672.140511,0.000123,2]
[347880157,1736178656389,-3876.25222147,0.000123,2]
[347880158,1736178656401,-67720.13517449,0.000123,2]
[347880159,1736178656412,-538.70369134,0.000123,2]
[347880160,1736178656423,-9379.03312447,0.000123,2]
[347880161,1736178656434,-16038.61259228,0.000123,2]
[347880162,1736178656446,-1839.99999992,0.000123,2]
[347880163,1736178656457,-1113.70970627,0.000123,2]
[347880164,1736178656468,-1018.1,0.000123,2]
[347880165,1736178656480,-927.21157669,0.000123,2]
[347880166,1736178656490,-3822.48,0.000123,2]
[347880167,1736178656502,-918.0,0.000123,2]
[347880168,1736178656513,-182962.5,0.000123,2]
[347880169,1736178656525,-418.18435819,0.000123,2]
[347880170,1736178656536,-479247.86312539,0.000123,2]
[347880171,1736178656549,-1510.0603134,0.000123,2]
[347880172,1736178656560,-8736.58807771,0.000123,2]
[347880173,1736178656576,-2704.598,0.000123,2]
[347880174,1736178656587,-1009.0940635,0.000123,2]
[347880175,1736178656599,-289.23636285,0.000123,2]
[347880176,1736178656610,-251639.09518473,0.000123,2]
[347880177,1736178656623,-28152.95384154,0.000123,2]
[347880178,1736178656639,-42217.3649194,0.000123,2]
[347880179,1736178656651,-830.71967019,0.000123,2]
[347880180,1736178656666,-777.741585,0.000123,2]
[347880181,1736178656677,-3759.5482,0.000123,2]
[347880182,1736178656689,-486.70274427,0.000123,2]
[347880183,1736178656700,-30717.52300421,0.000123,2]
[347880184,1736178656712,-8195.25901937,0.000123,2]
[347880185,1736178656723,-39727.51292869,0.000123,2]
[347880186,1736178656735,-25570.70545284,0.000123,2]
[347880187,1736178656746,-190217.33815057,0.000123,2]
[347880188,1736178656757,-36985.99698623,0.000123,2]
[347880189,1736178656769,-1411.3,0.000123,2]
[347880190,1736178656789,-6576.06436248,0.000123,2]
[347880191,1736178656801,-43153.78343159,0.000123,2]
[347880193,1736178880586,695.17,8.275e-05,2]
[347880200,1736179740365,20000.0,8.3e-05,2]
[347880201,1736179760139,-1000.0,8.759e-05,2]
[347880202,1736179760159,-2760.786456,8.759e-05,2]
[347880203,1736179780668,759.45,8.219e-05,2]
[347880216,1736179832302,-502.56,8.759e-05,2]
[347880217,1736179832314,-568.96999766,8.759e-05,2]
[347880218,1736179832334,-2265.56819684,8.759e-05,2]
[347880219,1736179832579,-413.21193929,8.759e-05,2]
[347880220,1736179832591,-5088.22901021,8.759e-05,2]
[347880221,1736179832600,-616.60279992,9.585e-05,2]
[347880222,1736179832609,-500.0,9.586e-05,2]
[347880223,1736179832618,-12142.72,9.586e-05,2]
[347880224,1736179832628,-1000.0,9.621e-05,2]
[347880225,1736179832637,-150.0,9.798e-05,2]
[347880226,1736179832646,-24682.92573465,9.798e-05,2]
[347880227,1736179832657,-4839.92543094,9.798e-05,2]
[347880228,1736179832665,-15861.6733,9.799e-05,2]
[347880229,1736179832674,-500.0,9.799e-05,2]
[347880230,1736179832684,-729.3856,9.799e-05,2]
[347880231,1736179832693,-265.4728,9.799e-05,2]
[347880232,1736179832702,-9503.83,9.799e-05,2]
[347880234,1736179832711,-250.0,9.858e-05,2]
[347880236,1736179832720,-970.2254,9.898e-05,2]
[347880238,1736179832729,-500.0,9.898e-05,2]
[347880240,1736179832738,-500.0,9.898e-05,2]
[347880241,1736179832747,-500.0,9.898e-05,2]
[347880243,1736179832757,-504.54744324,9.898e-05,2]
[347880245,1736179832767,-500.0,9.898e-05,2]
[347880247,1736179832776,-551.41,9.898e-05,2]
[347880249,1736179832786,-606.75,9.898e-05,2]
[347880250,1736179832795,-500.0,9.898e-05,2]
[347880251,1736179832804,-500.0,9.898e-05,2]
[347880252,1736179832816,-536.81,9.898e-05,2]
[347880253,1736179832825,-500.0,9.898e-05,2]
[347880254,1736179832835,-897.78,9.898e-05,2]
[347880255,1736179832844,-500.0,9.898e-05,2]
[347880256,1736179832853,-580.89,9.898e-05,2]
[347880257,1736179832862,-418.7533,9.898e-05,2]
[347880258,1736179832871,-622.00682174,9.899e-05,2]
[347880259,1736179832881,-194.02354629,9.899e-05,2]
[347880260,1736179832890,-500.68456381,9.899e-05,2]
[347880261,1736179832899,-500.0,9.899e-05,2]
[347880262,1736179832908,-500.0,9.899e-05,2]
[347880263,1736179832917,-500.10850106,9.899e-05,2]
[347880265,1736179832927,-500.50021399,9.899e-05,2]
[347880267,1736179832936,-500.49162605,9.899e-05,2]
[347880268,1736179832945,-500.71657288,9.899e-05,2]
[347880269,1736179832955,-500.43424159,9.899e-05,2]
[347880270,1736179832964,-500.38950699,9.899e-05,2]
[347880272,1736179832973,-500.13477095,9.899e-05,2]
[347880273,1736179832982,-500.65935572,9.899e-05,2]
[347880274,1736179832991,-500.3785124,9.899e-05,2]
[347880275,1736179833001,-500.24017173,9.899e-05,2]
[347880276,1736179833011,-397.5282202,9.899e-05,2]
[347880277,1736179833021,-500.58616409,9.899e-05,2]
[347880278,1736179833031,-500.43225279,9.899e-05,2]
[347880279,1736179833041,-500.63506432,9.899e-05,2]
[347880280,1736179833052,-500.53385576,9.899e-05,2]
[347880281,1736179833066,-500.56374959,9.899e-05,2]
[347880282,1736179833078,-228.63,9.899e-05,2]
[347880283,1736179833090,-500.0,9.899e-05,2]
[347880284,1736179833100,-500.0,9.899e-05,2]
[347880285,1736179833110,-640.81878877,9.899e-05,2]
[347880286,1736179833120,-386.46,9.899e-05,2]
[347880287,1736179833130,-500.0,9.899e-05,2]
[347880288,1736179833140,-477.71560071,9.899e-05,2]
[347880289,1736179833150,-500.0,9.899e-05,2]
[347880290,1736179833159,-500.0,9.899e-05,2]
[347880291,1736179833168,-500.0,9.899e-05,2]
[347880292,1736179833178,-500.0,9.899e-05,2]
[347880293,1736179833188,-500.0,9.899e-05,2]
[347880294,1736179833198,-500.0,9.899e-05,2]
[347880295,1736179833208,-500.0,9.899e-05,2]
[347880296,1736179833218,-500.0,9.899e-05,2]
[347880297,1736179833228,-501.7488858,9.899e-05,2]
[347880298,1736179833238,-502.16475439,9.899e-05,2]
[347880299,1736179833247,-486.13147416,9.899e-05,2]
[347880300,1736179833257,-500.0,9.899e-05,2]
[347880301,1736179833267,-500.0,9.899e-05,2]
[347880302,1736179833277,-500.0,9.899e-05,2]
[347880303,1736179833287,-500.0,9.899e-05,2]
[347880304,1736179833296,-500.0,9.899e-05,2]
[347880305,1736179833305,-500.0,9.899e-05,2]
[347880306,1736179833320,-500.0,9.899e-05,2]
[347880307,1736179833330,-500.0,9.899e-05,2]
[347880308,1736179833341,-500.0,9.899e-05,2]
[347880309,1736179833351,-500.0,9.899e-05,2]
[347880310,1736179833361,-668.79652407,9.969e-05,2]
[347880311,1736179833371,-250.0,9.992e-05,2]
[347880312,1736179833381,-1555.12,9.992e-05,2]
[347880313,1736179833391,-552.93,9.997e-05,2]
[347880314,1736179833401,-528.45,9.997e-05,2]
[347880315,1736179833411,-500.0,9.997e-05,2]
[347880316,1736179833421,-500.0,9.998e-05,2]
[347880317,1736179833431,-500.0,9.998e-05,2]
[347880318,1736179833441,-800.58,9.998e-05,2]
[347880319,1736179833454,-60.50829468,9.998e-05,2]
[347880320,1736179833468,-439.49170532,9.998e-05,2]
[347880321,1736179833478,-500.0,9.998e-05,2]
[347880322,1736179833488,-1176.96,9.998e-05,2]
[347880323,1736179833498,-1272.57,9.998e-05,2]
[347880324,1736179833508,-500.0,9.998e-05,2]
[347880325,1736179833519,-500.0,9.998e-05,2]
[347880326,1736179833528,-500.0,9.998e-05,2]
[347880327,1736179833538,-643.91,9.998e-05,2]
[347880328,1736179833549,-4180.12796239,9.999e-05,4]
[347880329,1736179833570,-1204.85367569,9.999e-05,4]
[347880330,1736179833580,-500.0,9.999e-05,2]
[347880331,1736179833591,-500.0,9.999e-05,2]
[347880332,1736179833601,-500.0,9.999e-05,2]
[347880333,1736179833613,-500.0,9.999e-05,2]
[347880334,1736179833623,-500.0,9.999e-05,2]
[347880335,1736179833633,-500.0,9.999e-05,2]
[347880336,1736179833643,-500.0,9.999e-05,2]
[347880337,1736179833652,-500.0,9.999e-05,2]
[347880338,1736179833662,-537.24,9.999e-05,2]
[347880339,1736179833672,-537.24,9.999e-05,2]
[347880340,1736179833682,-530.64,9.999e-05,2]
[347880341,1736179833692,-530.64,9.999e-05,2]
[347880342,1736179833702,-2142.1,9.999e-05,2]
[347880343,1736179833712,-766.56,9.999e-05,2]
[347880344,1736179833722,-668.79652416,0.0001,2]
[347880345,1736179833732,-668.79652407,0.0001,2]
[347880346,1736179833741,-668.79652407,0.0001,2]
[347880347,1736179833751,-668.79652407,0.0001,2]
[347880348,1736179833761,-668.79652407,0.00010086,2]
[347880349,1736179833771,-432.61,0.00010137,2]
[347880350,1736179833781,-500.0,0.00010172,2]
[347880351,1736179833791,-548.99,0.00010172,2]
[347880352,1736179833800,-322.54,0.00010172,2]
[347880353,1736179833811,-536.81,0.00010172,2]
[347880354,1736179833821,-897.78,0.00010172,2]
[347880355,1736179833830,-580.89,0.00010172,2]
[347880356,1736179833840,-500.0,0.00010173,2]
[347880357,1736179833850,-500.0,0.00010173,2]
[347880358,1736179833859,-500.0,0.00010173,2]
[347880359,1736179833869,-500.0,0.00010173,2]
[347880360,1736179833879,-500.0,0.00010173,2]
[347880361,1736179833889,-500.0,0.00010173,2]
[347880362,1736179833899,-500.0,0.00010173,2]
[347880363,1736179833909,-639.26,0.00010173,2]
[347880364,1736179833918,-500.0,0.00010173,2]
[347880365,1736179833928,-500.0,0.00010173,2]
[347880366,1736179833937,-454.0,0.00010192,2]
[347880367,1736179833946,-501.40922122,0.000102,2]
[347880368,1736179833956,-261.4084419,0.000102,2]
[347880369,1736179833965,-375.59719494,0.00010203,2]
[347880370,1736179833978,-293.19932913,0.00010203,2]
[347880371,1736179833988,-500.0,0.00010219,2]
[347880372,1736179833997,-428.27067087,0.00010271,2]
[347880373,1736179834009,-124.65932913,0.00010271,2]
[347880374,1736179834018,-475.34067087,0.00010271,2]
[347880375,1736179834034,-53.10932913,0.00010271,2]
[347880376,1736179834043,-500.0,0.00010271,2]
[347880377,1736179834052,-500.0,0.00010272,2]
[347880378,1736179834064,-500.0,0.00010272,2]
[347880379,1736179834076,-800.58,0.00010272,2]
[347880380,1736179834086,-1176.96,0.00010272,2]
[347880381,1736179834096,-1272.57,0.00010272,2]
[347880382,1736179834106,-500.0,0.00010272,2]
[347880383,1736179834118,-500.0,0.00010272,2]
[347880384,1736179834127,-500.0,0.00010272,2]
[347880385,1736179834136,-500.0,0.00010272,2]
[347880386,1736179834147,-643.91,0.00010272,2]
[347880387,1736179834157,-500.0,0.00010273,2]
[347880388,1736179834167,-500.0,0.00010273,2]
[347880389,1736179834176,-500.0,0.00010273,2]
[347880390,1736179834186,-500.0,0.00010273,2]
[347880391,1736179834197,-500.0,0.00010273,2]
[347880392,1736179834207,-500.0,0.00010273,2]
[347880393,1736179834219,-500.0,0.00010273,2]
[347880394,1736179834229,-537.24,0.00010273,2]
[347880395,1736179834239,-537.24,0.00010273,2]
[347880396,1736179834249,-530.64,0.00010273,2]
[347880397,1736179834259,-530.64,0.00010273,2]
[347880398,1736179834268,-2142.1,0.00010273,2]
[347880399,1736179834277,-766.56,0.00010273,2]
[347880400,1736179834287,-668.79652407,0.00010321,2]
[347880401,1736179834297,-1000.0,0.00010368,2]
[347880402,1736179834306,-668.79652407,0.00010438,2]
[347880403,1736179834319,-353.166,0.00010445,2]
[347880404,1736179834328,-536.81,0.00010446,2]
[347880405,1736179834339,-897.78,0.00010446,2]
[347880406,1736179834349,-580.89,0.00010446,2]
[347880407,1736179834359,-153.20130101,0.00010447,2]
[347880408,1736179834370,-500.0,0.00010447,2]
[347880409,1736179834380,-500.0,0.00010447,2]
[347880410,1736179834390,-500.0,0.00010447,2]
[347880411,1736179834401,-292.88,0.00010451,2]
[347880412,1736179834411,-759.45,0.00010451,2]
[347880413,1736179834421,-159.78084673,0.000105,2]
[347880414,1736179834433,-209.7123613,0.000105,2]
[347880415,1736179834444,-552.93,0.00010545,2]
[347880416,1736179834458,-528.45,0.00010545,2]
[347880417,1736179834467,-500.0,0.00010545,2]
[347880418,1736179834479,-183.30711369,0.00010546,2]
[347880419,1736179834493,-316.69288631,0.00010546,2]
[347880420,1736179834725,-268.1772937,0.00010546,2]
[347880421,1736179834737,-231.8227063,0.00010546,2]
[347880422,1736179834746,-800.58,0.00010546,2]
[347880423,1736179834756,-1176.96,0.00010546,2]
[347880424,1736179834766,-1272.57,0.00010546,2]
[347880425,1736179834775,-500.0,0.00010546,2]
[347880426,1736179834785,-500.0,0.00010546,2]
[347880427,1736179834795,-500.0,0.00010546,2]
[347880428,1736179834805,-500.0,0.00010546,2]
[347880429,1736179834816,-643.91,0.00010546,2]
[347880430,1736179834826,-500.0,0.00010547,2]
[347880431,1736179834836,-518.76,0.00010547,2]
[347880432,1736179834845,-500.0,0.00010547,2]
[347880433,1736179834855,-500.0,0.00010547,2]
[347880434,1736179834866,-500.0,0.00010547,2]
[347880435,1736179834876,-500.0,0.00010547,2]
[347880436,1736179834886,-537.24,0.00010547,2]
[347880437,1736179834895,-537.24,0.00010547,2]
[347880438,1736179834905,-530.64,0.00010547,2]
[347880439,1736179834915,-530.64,0.00010547,2]
[347880440,1736179834924,-2142.1,0.00010547,2]
[347880441,1736179834934,-766.56,0.00010547,2]
[347880442,1736179834943,-668.79652407,0.00010555,2]
[347880443,1736179834953,-500.0,0.00010603,2]
[347880444,1736179834963,-151.02062661,0.00010611,2]
[347880445,1736179834973,-151.79180435,0.00010611,2]
[347880446,1736179834983,-500.0,0.0001066,2]
[347880447,1736179834993,-500.49217523,0.0001066,2]
[347880448,1736179835003,-668.79652407,0.00010672,2]
[347880449,1736179835013,-536.81,0.0001072,2]
[347880450,1736179835023,-897.78,0.0001072,2]
[347880451,1736179835032,-580.89,0.0001072,2]
[347880452,1736179835042,-302.24,0.00010721,2]
[347880453,1736179835052,-250.0,0.00010721,2]
[347880454,1736179835064,-500.0,0.00010721,2]
[347880455,1736179835076,-500.0,0.00010721,2]
[347880456,1736179835086,-500.0,0.00010721,2]
[347880457,1736179835096,-255.0,0.00010778,2]
[347880458,1736179835105,-668.79652407,0.0001079,2]
[347880459,1736179835114,-208.09726324,0.00010819,2]
[347880460,1736179835123,-500.0,0.00010819,2]
[347880461,1736179835133,-500.0,0.00010819,2]
[347880462,1736179835142,-250.6772437,0.00010819,2]
[347880463,1736179835152,-180.1522927,0.00010819,2]
[347880464,1736179835162,-249.3227563,0.00010819,2]
[347880465,1736179835171,-500.0,0.00010819,2]
[347880466,1736179835181,-500.0,0.00010819,2]
[347880467,1736179835191,-500.0,0.00010819,2]
[347880468,1736179835201,-500.0,0.00010819,2]
[347880469,1736179835211,-552.93,0.00010819,2]
[347880470,1736179835221,-528.45,0.00010819,2]
[347880471,1736179835230,-500.0,0.00010819,2]
[347880472,1736179835239,-500.0,0.00010819,2]
[347880473,1736179835249,-500.0,0.0001082,2]
[347880474,1736179835258,-500.0,0.0001082,2]
[347880475,1736179835268,-800.58,0.0001082,2]
[347880476,1736179835278,-1176.96,0.0001082,2]
[347880477,1736179835287,-1272.57,0.0001082,2]
[347880478,1736179835297,-500.0,0.0001082,2]
[347880479,1736179835307,-500.0,0.0001082,2]
[347880480,1736179835319,-500.0,0.0001082,2]
[347880481,1736179835329,-500.0,0.0001082,2]
[347880482,1736179835339,-643.91,0.0001082,2]
[347880483,1736179835349,-500.0,0.00010821,2]
[347880484,1736179835359,-500.0,0.00010821,2]
[347880485,1736179835368,-500.0,0.00010821,2]
[347880486,1736179835378,-500.0,0.00010821,2]
[347880487,1736179835388,-537.24,0.00010821,2]
[347880488,1736179835398,-537.24,0.00010821,2]
[347880489,1736179835407,-530.64,0.00010821,2]
[347880490,1736179835417,-530.64,0.00010821,2]
[347880491,1736179835427,-2142.1,0.00010821,2]
[347880492,1736179835436,-766.56,0.00010821,2]
[347880493,1736179835446,-216.77345492,0.00010821,2]
[347880494,1736179835455,-1000.0,0.00010824,2]
[347880495,1736179835466,-2200.0,0.000109,3]
[347880496,1736179835477,-668.79652407,0.00010907,2]
[347880497,1736179835490,-150.0,0.00010958,2]
[347880498,1736179835501,-1798.46,0.00010958,2]
[347880499,1736179835511,-150.0,0.00010959,2]
[347880500,1736179835521,-400.0,0.00010986,2]
[347880501,1736179835531,-536.81,0.00010994,2]
[347880502,1736179835540,-897.78,0.00010994,2]
[347880503,1736179835550,-500.0,0.00010994,2]
[347880504,1736179835562,-500.0,0.00010994,2]
[347880505,1736179835572,-500.0,0.00010994,2]
[347880506,1736179835582,-523.11,0.00010994,2]
[347880507,1736179835592,-500.0,0.00010994,2]
[347880508,1736179835602,-618.74,0.00010994,2]
[347880509,1736179835612,-580.89,0.00010994,2]
[347880510,1736179835622,-214.46168851,0.00010994,2]
[347880511,1736179835631,-500.0,0.00010994,2]